Cogmind - Beta 9.2 @@@ ROGUE MODE // 2019.11.16 @ 17:56:50 Player: Alexbot Result: Destroyed by L-31 Rogue with Katana Performance ------------- Evolutions (1) 500 Regions Visited (6) 1200 Robots Destroyed (43) 215 Value Destroyed (1022) 1022 Prototype IDs (23) 460 Alien Tech Used (0) 0 Bonus (708) 708 TOTAL SCORE: 4105 Bonus ------- Sticky Parts 500 High Alert Combat Kills 11 Follower Combat Kills 21 Aligned with FarCom 300 Friendly Fire -124 Cogmind --------- Core Integrity 0/400 Matter 87/300 Energy 100/100 System Corruption 2% Temperature Cool (241) Movement Core (350) Ox6 Location -8/Mines Parts ------- > --- POWER (1) -------- (None) > --- PROPULSION (2) --- (None) > --- UTILITY (3) ------ Large Storage Unit > --- WEAPON (3) ------- Improved Assault Rifle > --- INVENTORY (10) --- Faulty Cooled Ion Engine Wheel Medium Storage Unit Large Storage Unit Firepult Peak State ------------ > --- POWER ------------ Light Ion Engine > --- PROPULSION ------- Wheel Compact Wheel > --- UTILITY ---------- Large Storage Unit > --- WEAPON ----------- Improved Assault Rifle Improved Assault Rifle Improved Assault Rifle > --- INVENTORY -------- Ion Engine Cooled Ion Engine Wheel Medium Storage Unit Large Storage Unit Firepult [Rating: 15] Favorites ----------- Power Light Ion Engine Engine Light Ion Engine Propulsion Light Treads Treads Light Treads Wheel Compact Wheel Utility Large Storage Unit Storage Large Storage Unit Protection Improved Light Armor Plating Weapon Improved Assault Rifle Energy Gun Small Laser Energy Cannon Ion Cannon Ballistic Gun Improved Assault Rifle Launcher Rocket Launcher Build | -11 -10 -10 -9 -9 -9 -8 ------- Run | Scr Mat Min Mat Min Exi Min Slots Evolved 2 | . . . 2 . . . Power . | . . . . . . . Propulsion . | . . . . . . . Utility 1 | . . . 1 . . . Weapon 1 | . . . 1 . . . Parts Attached 18 | 5 . 1 4 6 . 2 Power 3 | 1 . . . 1 . 1 Engine 3 | 1 . . . 1 . 1 Core . | . . . . . . . Reactor . | . . . . . . . Propulsion 5 | 2 . . . 3 . . Treads 2 | 2 . . . . . . Leg . | . . . . . . . Wheel 3 | . . . . 3 . . Hover . | . . . . . . . Flight . | . . . . . . . Utility 3 | . . 1 2 . . . Device . | . . . . . . . Storage 1 | . . . 1 . . . Processor . | . . . . . . . Hackware . | . . . . . . . Protection 2 | . . 1 1 . . . Artifact . | . . . . . . . Weapon 7 | 2 . . 2 2 . 1 Energy Gun 1 | 1 . . . . . . Energy Cannon 1 | . . . 1 . . . Ballistic Gun 4 | 1 . . . 2 . 1 Ballistic Cannon . | . . . . . . . Launcher 1 | . . . 1 . . . Special Weapon . | . . . . . . . Impact Weapon . | . . . . . . . Slashing Weapon . | . . . . . . . Piercing Weapon . | . . . . . . . Special Melee Weapon . | . . . . . . . Unidentified Prototypes 1 | . . . . 1 . . Parts Lost 16 | . . . 3 7 . 6 Power 3 | . . . . 1 . 2 Propulsion 5 | . . . . 3 . 2 Utility 2 | . . . 1 1 . . Weapon 6 | . . . 2 2 . 2 Highest Loss Streak 6 | . . . 1 3 . 6 Average Slot Usage (%) 71 | . 71 76 78 50 66 73 Engine 11 | . 14 14 11 6 11 11 Treads 14 | . 28 28 22 7 . . Wheel 7 | . . . . 9 22 20 Storage 7 | . . . 7 11 11 11 Protection 7 | . . 5 20 . . . Energy Gun 3 | . 14 14 . . . . Energy Cannon 3 | . . . 10 . . . Ballistic Gun 14 | . 14 14 5 8 22 30 Launcher 1 | . . . 1 6 . . Naked Turns . | . . . . . . . Heaviest Build 35 | 5 5 8 35 25 25 28 Greatest Support 40 | 40 40 40 40 40 26 26 Greatest Overweight (x) 1 | . . . . 1 . 1 Average Overweight (x) . | . . . . . . . Largest Inventory Capacity 10 | 4 4 4 10 10 10 10 Average Capacity 7 | 4 4 4 8 10 10 10 Most Carried 10 | 4 4 4 10 9 8 8 Average Carried 5 | 2 4 3 5 7 6 7 Final Capacity 10 | 4 4 4 10 10 10 10 Final Carried 9 | 4 4 4 9 6 8 6 Class Distribution -------------------- 84% | Mutant 15% | Skirmisher Dominant Class ---------------- Mutant | -10/Materials Mutant | -10/Mines Mutant | -9/Materials Mutant | -9/Mines Mutant | -9/Exiles Skirmisher | -8/Mines Resources | -11 -10 -10 -9 -9 -9 -8 ----------- Run | Scr Mat Min Mat Min Exi Min Matter Collected 530 | 219 38 . 79 156 . 38 Remotely . | . . . . . . . Salvage Created 1062 | . 96 . 627 182 . 157 Parts 56 | . 3 . 35 7 . 11 Haulers Intercepted . | . . . . . . . Recyclers Shooed 1 | . . . 1 . . . Parts Field Recycled . | . . . . . . . Retrieved Matter . | . . . . . . . Parts Self-Destructed . | . . . . . . . Prevented . | . . . . . . . Kills | -11 -10 -10 -9 -9 -9 -8 ------- Run | Scr Mat Min Mat Min Exi Min Combat Hostiles Destroyed 40 | . 2 . 21 11 . 6 Guns 11 | . 2 . . 3 . 6 Cannons 11 | . . . 11 . . . AOE 18 | . . . 10 8 . . Classes Destroyed 7 | . 1 . 3 3 . . Worker 1 | . . . . 1 . . Recycler 1 | . . . 1 . . . Swarmer 17 | . . . 10 3 . 4 Grunt 17 | . 2 . 9 4 . 2 Sentry 2 | . . . 2 . . . Demolisher 1 | . . . . 1 . . Assembled 3 | . . . . 3 . . Thug 1 | . . . 1 . . . Best Kill Streak 11 | . 2 . 11 5 . 3 Combat Bots Only 11 | . 2 . 11 4 . 3 Max Kills in Single Turn 3 | . 1 . 3 2 . 2 Gunslinging 1 | . . . . . . 1 Exploded 3 | . . . 3 2 . . Melee . | . . . . . . . Uniques/NPCs Destroyed . | . . . . . . . Combat | -11 -10 -10 -9 -9 -9 -8 -------- Run | Scr Mat Min Mat Min Exi Min Damage Taken 1955 | . 85 22 782 371 . 695 Core 410 | . . 4 154 117 . 135 Absorbed by Shields . | . . . . . . . Core Remaining (%) 99 | 100 . 98 . . . . Volleys Fired 89 | . 7 . 42 18 . 22 Largest 3 | . 2 . 2 2 . 3 Hottest 80 | . 60 . 80 46 . 69 Shots Fired 145 | . 14 . 44 24 . 63 Gun 93 | . 14 . 2 14 . 63 Cannon 34 | . . . 34 . . . Launcher 18 | . . . 8 10 . . Special . | . . . . . . . Kinetic 86 | . 7 . 2 14 . 63 Thermal 41 | . 7 . 34 . . . Explosive 18 | . . . 8 10 . . Electromagnetic . | . . . . . . . Robot Hit Streak 10 | . 6 . 5 10 . 9 Robot Miss Streak 3 | . 2 . 2 2 . 3 Penetration Max . | . . . . . . . Secondary Targets 3 | . . . . . . 3 Max Gunslinging Chain 1 | . . . . . . 1 Shots Hit Robots 97 | . 10 . 27 16 . 44 Core Hits 71 | . 5 . 32 21 . 13 Critical Hits 1 | . . . . . . 1 Critical Kills 1 | . . . . . . 1 Critical Parts Destroyed . | . . . . . . . Melee Attacks . | . . . . . . . Impact . | . . . . . . . Slashing . | . . . . . . . Piercing . | . . . . . . . Sneak Attacks . | . . . . . . . Combat Hostiles . | . . . . . . . Follow-up Attacks . | . . . . . . . Damage Inflicted 3085 | . 88 . 1605 849 . 543 Guns 749 | . 88 . 17 101 . 543 Cannons 612 | . . . 612 . . . Explosions 1724 | . . . 976 748 . . Melee . | . . . . . . . Ramming . | . . . . . . . Kinetic 694 | . 33 . 17 101 . 543 Thermal 667 | . 55 . 612 . . . Explosive 1724 | . . . 976 748 . . Electromagnetic . | . . . . . . . Impact . | . . . . . . . Slashing . | . . . . . . . Piercing . | . . . . . . . Highest Corruption 2 | . . . 2 2 2 2 Average Corruption 2 | . . . 2 2 2 2 Corruption Purged . | . . . . . . . Effects 8 | . . . . 1 2 5 Message Errors 4 | . . . . . 1 3 Heat Flow Errors 2 | . . . . . 1 1 Data Loss (minor) 2 | . . . . 1 . 1 Overload Shots . | . . . . . . . Overflow Damage 124 | . . . 79 45 . . Projectiles 23 | . . . 23 . . . Explosions 101 | . . . 56 45 . . Melee . | . . . . . . . Knockbacks . | . . . . . . . Impact . | . . . . . . . Kinetic . | . . . . . . . Secondary . | . . . . . . . Self-Inflicted Damage 208 | . . . . 208 . . Shots 7 | . . . . 7 . . Rammed . | . . . . . . . Targets Rammed . | . . . . . . . Kicked . | . . . . . . . Crushed . | . . . . . . . Highest Temperature 248 | . 79 . 247 7 99 248 Average Temperature 113 | . 45 . 106 7 53 179 Received Heat Transfer 607 | . 48 . 189 100 . 270 Effects 2 | . . . 2 . . . Energy Bleed 1 | . . . 1 . . . Interference 1 | . . . 1 . . . Siege Activations . | . . . . . . . Robots Corrupted . | . . . . . . . Combat Hostiles . | . . . . . . . Parts Fried . | . . . . . . . Impact Corruptions . | . . . . . . . Robots Melted . | . . . . . . . Combat Hostiles . | . . . . . . . Parts Melted 1 | . . . 1 . . . Heat Transferred 1124 | . 125 . 999 . . . Parts Sabotaged . | . . . . . . . Parts Stolen . | . . . . . . . Parts Stripped . | . . . . . . . Power Chain Reactions . | . . . . . . . Missiles Intercepted . | . . . . . . . Alert | -11 -10 -10 -9 -9 -9 -8 ------- Run | Scr Mat Min Mat Min Exi Min Peak Influence 435 | . 58 96 435 320 . 120 Average Influence 120 | . 19 74 153 260 . 70 Maximum Alert Level 2 | . . . 2 1 . . Low Security (%) 79 | 100 100 100 83 . . 100 Level 1 17 | . . . 9 99 . . Level 2 2 | . . . 6 . . . Level 3 . | . . . . . . . Level 4 . | . . . . . . . Level 5 . | . . . . . . . High Security . | . . . . . . . Max Security . | . . . . . . . Squads Dispatched 2 | . . . 2 . . . Investigation . | . . . . . . . Extermination . | . . . . . . . Reinforcement 2 | . . . 2 . . . Assault . | . . . . . . . Garrison . | . . . . . . . Intercept . | . . . . . . . Construction Impeded . | . . . . . . . Haulers Reinforced . | . . . . . . . Stealth | -11 -10 -10 -9 -9 -9 -8 --------- Run | Scr Mat Min Mat Min Exi Min Distress Signals 1 | . . . 1 . . . Communications Jammed . | . . . . . . . Distress Signals . | . . . . . . . Times Spotted 55 | . 3 2 31 9 . 10 Peak Tracking Total 11 | . 3 3 11 3 . 5 Tactical Retreats 2 | . . . 1 1 . . Traps | -11 -10 -10 -9 -9 -9 -8 ------- Run | Scr Mat Min Mat Min Exi Min Traps Triggered 1 | . 1 . . . . . Indirectly . | . . . . . . . Trap Hack Attempts . | . . . . . . . Triggered . | . . . . . . . Disarmed . | . . . . . . . Reprogrammed . | . . . . . . . Reused . | . . . . . . . Traps Extracted . | . . . . . . . Installed . | . . . . . . . Triggered . | . . . . . . . Machines | -11 -10 -10 -9 -9 -9 -8 ---------- Run | Scr Mat Min Mat Min Exi Min Machines Disabled 3 | . . . 3 . . . Max in Single Turn 1 | . . . 1 . . . Machines Sabotaged . | . . . . . . . Garrisons Compromised . | . . . . . . . Overloaded Fab Kills . | . . . . . . . Fab Network Shutdowns . | . . . . . . . Hacking | -11 -10 -10 -9 -9 -9 -8 --------- Run | Scr Mat Min Mat Min Exi Min Machines Accessed 7 | . 1 1 4 . 1 . Terminals 5 | . 1 . 4 . . . Fabricators . | . . . . . . . Repair Stations . | . . . . . . . Recycling Units . | . . . . . . . Scanalyzers . | . . . . . . . Garrison Access . | . . . . . . . Total Hacks 12 | . 2 1 8 . 1 . Successful 4 | . 1 1 1 . 1 . Failed 8 | . 1 . 7 . . . Catastrophic 2 | . . . 2 . . . Database Lockouts . | . . . . . . . Manual 10 | . 2 . 7 . 1 . Terminals 10 | . 2 . 8 . . . Fabricators . | . . . . . . . Repair Stations . | . . . . . . . Recycling Units . | . . . . . . . Scanalyzers . | . . . . . . . Garrison Access . | . . . . . . . Terminal Hacks 4 | . 1 1 1 . 1 . Open Door 1 | . . 1 . . . . Branch Access Points 2 | . 1 . 1 . . . EX-Prototype ID Bank 1 | . . . . . 1 . Fabricator Hacks . | . . . . . . . Repair Station Hacks . | . . . . . . . Recycling Unit Hacks . | . . . . . . . Scanalyzer . | . . . . . . . Garrison Access Hacks . | . . . . . . . Unauthorized Hacks . | . . . . . . . Terminals . | . . . . . . . Fabricators . | . . . . . . . Repair Stations . | . . . . . . . Recycling Units . | . . . . . . . Scanalyzers . | . . . . . . . Garrison Access . | . . . . . . . Data Cores Recovered . | . . . . . . . Used . | . . . . . . . Hacking Detections 4 | . 1 . 3 . . . Full Trace Events . | . . . . . . . Feedback Events . | . . . . . . . Feedback Blocked . | . . . . . . . Robot Schematics Acquired . | . . . . . . . Robots Built . | . . . . . . . Matter . | . . . . . . . Time . | . . . . . . . Total Robot Build Rating . | . . . . . . . Part Schematics Acquired . | . . . . . . . Parts Built . | . . . . . . . Matter . | . . . . . . . Time . | . . . . . . . Total Part Build Rating . | . . . . . . . Parts Repaired . | . . . . . . . Time . | . . . . . . . Parts Recycled . | . . . . . . . Recycled Matter . | . . . . . . . Retrieved Matter . | . . . . . . . Retrieved Components . | . . . . . . . Parts Scanalyzed . | . . . . . . . Part Schematics Acquired . | . . . . . . . Parts Damaged . | . . . . . . . Bothacking | -11 -10 -10 -9 -9 -9 -8 ------------ Run | Scr Mat Min Mat Min Exi Min Used RIF Installer . | . . . . . . . Robots Hacked . | . . . . . . . Non-combat . | . . . . . . . Combat . | . . . . . . . Robot Hacks Applied . | . . . . . . . Relay Couplers Released . | . . . . . . . Robots Rewired . | . . . . . . . Allies Hacked . | . . . . . . . Hacks Repelled . | . . . . . . . Allies | -11 -10 -10 -9 -9 -9 -8 -------- Run | Scr Mat Min Mat Min Exi Min Total Allies 1 | . . 1 . . . . Largest Group 1 | . . 1 1 . . . Highest-Rated Group 31 | . . 31 31 . . . Highest-Rated Ally 31 | . . 31 31 . . . Total Orders . | . . . . . . . Ally Attacks 8 | . . 8 . . . . Total Damage 107 | . . 107 . . . . Kills 3 | . . 3 . . . . Allies Corrupted . | . . . . . . . Allies Melted . | . . . . . . . Intel | -11 -10 -10 -9 -9 -9 -8 ------- Run | Scr Mat Min Mat Min Exi Min Robot Analysis Total . | . . . . . . . Derelict Logs Recovered . | . . . . . . . Drone Launches . | . . . . . . . Drone Recoveries . | . . . . . . . Exploration | -11 -10 -10 -9 -9 -9 -8 ------------- Run | Scr Mat Min Mat Min Exi Min Turns Passed 1978 | 78 164 241 666 252 193 384 Spaces Moved 1105 | 43 91 139 354 167 214 97 Core 1 | 1 . . . . . . Treads 684 | 42 91 139 354 58 . . Legs . | . . . . . . . Wheels 420 | . . . . 109 214 97 Hover . | . . . . . . . Flight . | . . . . . . . Fastest Speed 50 | 50 160 160 160 90 90 90 Average Speed 134 | 157 160 160 160 118 90 95 Slowest Speed 160 | 160 160 160 160 160 90 100 Overloaded Moves . | . . . . . . . Propulsion Burnouts . | . . . . . . . Robots Hopped . | . . . . . . . Cave-ins Triggered 1 | . . . 1 . . . Exploration Rate (%) 30 | 5 22 28 41 46 60 13 Regions Visited 6 Branch Regions 4 Pre-discovered Areas . | . . . . . . . Known Exits Taken 2 | . 1 . 1 . . . Unknown Exits Taken 4 | 1 . 1 . 1 1 . Scrap Searched 1 | . . . . 1 . . Spaces Dug . | . . . . . . . Terrain Destroyed 154 | . . . 53 101 . . Melee . | . . . . . . . Projectile 1 | . . . 1 . . . AOE 153 | . . . 52 101 . . Actions | -11 -10 -10 -9 -9 -9 -8 --------- Run | Scr Mat Min Mat Min Exi Min Total 1464 | 51 97 158 409 195 214 340 Wait 243 | . . 17 3 4 . 219 Move 1099 | 42 90 138 353 166 213 97 Hop . | . . . . . . . Pick Up 14 | 4 . 1 7 1 1 . Fast Attach 10 | 5 . 1 2 2 . . Attach 8 | . . . 2 4 . 2 Detach . | . . . . . . . Swap . | . . . . . . . Drop 1 | . . 1 . . . . Fire 89 | . 7 . 42 18 . 22 Melee . | . . . . . . . Ram . | . . . . . . . Kick . | . . . . . . . Crush . | . . . . . . . Escape Stasis . | . . . . . . . Rewire . | . . . . . . . Trap . | . . . . . . . Miscellaneous . | . . . . . . . Route ------- -11/Scrapyard -10/Materials (discovered 2 exits: *Mat / *Min) -10/Mines -9/Materials -9/Mines (discovered 2 exits: [*Mat] / *Exi) -9/Exiles -8/Mines History --------- Turn | Location | Event 14 | -11/Scrapyard | Discovered new exit (range 15) 79 | -11/Scrapyard | Entered Materials 119 | -10/Materials | Identified exit to Mines 163 | -10/Materials | Discovered new exit (range 15) 243 | -10/Materials | Entered Mines 246 | -10/Mines | Received a Mining Laser from a helpful Derelict 308 | -10/Mines | Build established: Mutant 378 | -10/Mines | Met a Derelict who couldn't figure out how to use a Trap Extractor 467 | -10/Mines | Discovered new exit (range 10) 484 | -10/Mines | Entered Materials 484 | -9/Materials | Accompanied by 1 ally 484 | -9/Materials | Evolved 2 slots: Utility x1, Weapon x1 720 | -9/Materials | Identified exit to Mines 1114 | -9/Materials | Crushed by falling debris 1126 | -9/Materials | Destroyed 11 combat bots 1150 | -9/Materials | Entered Mines 1179 | -9/Mines | Assembled infested the area 1252 | -9/Mines | Discovered new exit (range 8) 1278 | -9/Mines | Lost 3 parts (1p2n) 1294 | -9/Mines | Core integrity fell below 50% 1398 | -9/Mines | Deemed a non-threat by the Exiles lab entrance 1399 | -9/Mines | Discovered new exit (range 5) 1402 | -9/Mines | Entered Exiles 1425 | -9/Exiles | Met 8R-AWN 1438 | -9/Exiles | Met EX-HEX 1465 | -9/Exiles | Met EX-BIN 1475 | -9/Exiles | Aligned with FarCom system 1476 | -9/Exiles | Given EX-Vault access code 1502 | -9/Exiles | Opened EX-Vault 1509 | -9/Exiles | Found Firepult 1528 | -9/Exiles | Warned to stay clear of 0b10 Research branches 1554 | -9/Exiles | Met EX-DEC 1586 | -9/Exiles | Discovered new exit (range 11) 1595 | -9/Exiles | Left Exiles lab with Firepult 1595 | -9/Exiles | Entered Mines 1975 | -8/Mines | Core integrity fell below 20% 1979 | -8/Mines | Destroyed by L-31 Rogue with Katana Last Messages --------------- 01700_ S-10 Pest destroyed. 01722_ K-01 Serf collects debris. 01728_ 4IHXHXZ 01828_ :PI F0=2 RZ5|MY0TEIB 01862_ NNW3%6AGE% XBK1DOMY,KUS 01899_ System corrupted: Component data lost. 01916_ Acquired 11 matter. 01917_ Acquired 15 matter. 01919_ Acquired 12 matter. 01936_ System corrupted: Heat flow error (+230). 01942_ Lgt. Ion Engine destroyed. 01944_ Com. Wheel destroyed. 01951_ G-50 Soldier destroyed. 01964_ G-47 Trooper destroyed. 01964_ Switching to secondary target: G-47 Trooper. 01965_ Wheel destroyed. 01971_ Imp. Assault Rifle destroyed. 01971_ Ion Engine destroyed. 01974_ Imp. Assault Rifle destroyed. Map ----- +----------------------------------------------------+ | ??????????????????????????????? | | ??????????????????????????????? | | ??????????????????????????????? | | ??????????????????????????????? | | ??????????????????????????????? | | ??????????????????????????????? | | ??????????????####????????????? | | ??????????????# ????????????? | | ??????????????# ????????????? | | ??????????????# #????????????? | | ??????????????# #????????????? | | ??????????????# #????????????? | | ??????????????# #????????????? | | ??????????????# #????????????? | | ??????????????# #??????######? | | ??????????????# #????### ## | | ?????????????##%[##??## # | | ????????????##=*= #### # | | ?????###?####*g=% # | | ????## ### | | ????# ##### | | ????# #???## ### | | ????# ##???####?## | | ????# ##????????#### | | ????# g g #???????????# | | ????##@l #???????????? | | ?????##### ##???????????? | | ?????????## #????????????? | | ??????????## ##????????????? | | ???????????## ##?????????????? | | ????????????#g #??????????????? | | ????????????g #??????????????? | | ??????????? $ #??????????????? | | ??????????g#####??????????????? | | ?????????? ???????????????????? | | ????????? ????????????????????? | | ????????#?????????????????????? | | ??????????????????????????????? | | ??????????????????????????????? | | ??????????????????????????????? | | ??????????????????????????????? | | ??????????????????????????????? | | ??????????????????????????????? | | ??????????????????????????????? | | ??????????????????????????????? | | ??????????????????????????????? | | ??????????????????????????????? | | ??????????????????????????????? | | ??????????????????????????????? | | ??????????????????????????????? | +----------------------------------------------------+ Best States ------------- Heat Dissipation 28 Energy Generation 10 Energy Capacity 250 Matter Stores 300 Matter Capacity 300 Sight Range 16 Terrain Scan Density 10 Armor Coverage 300 Evasion (%) 42 Recoil Reduction 2 Item Schematics ----------------- None Robot Schematics ------------------ None Fabricated ------------ Nothing Alien Tech Used ----------------- None Achievements -------------- None Challenges ------------ Sticky Parts Game ------ Seed ReflectiveStasisArray Manual? 0 Play Time 00:12:18 Cumulative 712.5 hours Start 2019.11.16 @ 17:46:16 End 2019.11.16 @ 17:56:50 Sessions 1 Manual Loads 0 Difficulty Rogue Special Mode None Game No. 199 Rogue 199 Adventurer 0 Explorer 0 Win Type - Total 34 Types 25/0/2/3/2/1/1 Lore% 96 Gallery% 97 Achievement% 91 Wizard Run 0 Options --------- ASCII 0 Keyboard 1 Movement Numpad Keybinds 0 Fullscreen 1 Font 18/SmallcapsGlow Map View 76x50 Tactical HUD 1 Map Filters NONE Filters NONE Steam 1 RUN: 5f296123-cf1c-46f1-8ea8-21960b59bf1b